fUST/lending_fUST_20250106
["ID","MTS","AMOUNT","RATE_DAILY","PERIOD"]
[347859585,1736165438359,-500.0,0.00019178,2]
[347859587,1736165438370,-500.0,0.00019178,2]
[347859589,1736165438379,-343.47,0.00019178,2]
[347859591,1736165438388,-500.0,0.00019178,2]
[347859593,1736165438398,-500.0,0.00019178,2]
[347859595,1736165438407,-500.0,0.00019178,2]
[347859597,1736165438416,-149.34399141,0.00019178,2]
[347859599,1736165438431,-350.65600859,0.00019178,2]
[347859601,1736165438440,-506.81917,0.00019178,2]
[347859603,1736165438450,-500.0,0.00019178,2]
[347859605,1736165438459,-1115.45,0.00019178,2]
[347859607,1736165438470,-500.0,0.00019178,2]
[347859610,1736165438479,-500.0,0.00019178,2]
[347859612,1736165438489,-500.0,0.00019178,2]
[347859614,1736165438500,-620.67,0.00019178,2]
[347859616,1736165438510,-500.0,0.00019178,2]
[347859618,1736165438519,-1106.58,0.00019178,2]
[347859620,1736165438528,-500.0,0.00019178,2]
[347859622,1736165438536,-1730.4,0.00019178,2]
[347859624,1736165438546,-500.0,0.00019178,2]
[347859626,1736165438555,-489.72612757,0.00019178,2]
[347859812,1736165440525,-500.0,0.00017983,2]
[347859815,1736165440536,-500.0,0.00017983,2]
[347859817,1736165440545,-412.76645866,0.00017983,2]
[347859819,1736165440555,-474.88503582,0.00017983,2]
[347859821,1736165440564,-500.0,0.00017983,2]
[347859823,1736165440574,-626.40408999,0.00017983,2]
[347859825,1736165440583,-500.0,0.00017983,2]
[347859827,1736165440592,-500.0,0.00017983,2]
[347859829,1736165440601,-391.52826426,0.00017983,2]
[347859831,1736165440610,-612.94387243,0.00019178,2]
[347859833,1736165440619,-500.0,0.00019178,2]
[347859835,1736165440629,-151.0,0.00019178,2]
[347859837,1736165440638,-500.0,0.00019178,2]
[347859839,1736165440647,-500.0,0.00019178,2]
[347859841,1736165440656,-500.0,0.00019178,2]
[347859843,1736165440665,-500.0,0.00019178,2]
[347859845,1736165440675,-500.0,0.00019178,2]
[347859847,1736165440686,-500.0,0.00019178,2]
[347859849,1736165440696,-500.0,0.00019178,2]
[347859851,1736165440706,-500.0,0.00019178,2]
[347859853,1736165440716,-811.85,0.00019178,2]
[347859855,1736165440726,-500.0,0.00019178,2]
[347859857,1736165440735,-500.0,0.00019178,2]
[347859859,1736165440745,-500.0,0.00019178,2]
[347859861,1736165440754,-500.0,0.00019178,2]
[347859863,1736165440764,-12208.07,0.00019178,2]
[347859865,1736165440774,-500.0,0.00019178,2]
[347859867,1736165440784,-500.0,0.00019178,2]
[347859869,1736165440793,-900.43,0.00019178,2]
[347859871,1736165440802,-500.0,0.00019178,2]
[347859873,1736165440812,-500.0,0.00019178,2]
[347859875,1736165440821,-807.62,0.00019178,2]
[347859877,1736165440831,-3293.07,0.00019178,2]
[347859879,1736165440840,-500.0,0.00019178,2]
[347859881,1736165440849,-500.0,0.00019178,2]
[347859883,1736165440858,-500.0,0.00019178,2]
[347859885,1736165440868,-848.15,0.00019178,2]
[347859887,1736165440878,-500.0,0.00019178,2]
[347859889,1736165440887,-500.0,0.00019178,2]
[347859891,1736165440896,-500.0,0.00019178,2]
[347859893,1736165440905,-500.0,0.00019178,2]
[347859895,1736165440915,-500.0,0.00019178,2]
[347859897,1736165440924,-500.0,0.00019178,2]
[347859899,1736165440936,-500.0,0.00019178,2]
[347859901,1736165440946,-500.0,0.00019178,2]
[347859903,1736165440956,-500.0,0.00019178,2]
[347859905,1736165440965,-462.33823733,0.00019178,2]
[347859907,1736165440975,-372.95343065,0.00019178,2]
[347859909,1736165440983,-500.0,0.00019178,2]
[347859911,1736165440993,-500.0,0.00019178,2]
[347859913,1736165441002,-500.0,0.00019178,2]
[347859915,1736165441011,-500.0,0.00019178,2]
[347859917,1736165441021,-162.638744,0.00019178,2]
[347859919,1736165441030,-2479.60231713,0.00019218,2]
[347859921,1736165441040,-500.0,0.00019273,2]
[347859923,1736165441049,-500.0,0.00019273,2]
[347859926,1736165441059,-151.0,0.000193,2]
[347859928,1736165441069,-947784.74954984,0.000193,5]
[347860265,1736165467085,1055.52363143,0.0001499,2]
[347860266,1736165467344,1055.52363143,0.00014999,2]
[347860267,1736165467652,1055.52363143,0.00014995,2]
[347860268,1736165665550,180.0,0.00025,120]
[347860271,1736166031252,-185.9228116,0.00016238,2]
[347860272,1736166031275,-185.9228116,0.00016402,2]
[347860273,1736166031297,-185.9228116,0.00016567,2]
[347860274,1736166031319,-300.0,0.00017954,2]
[347860275,1736166031340,-370.0,0.00017954,2]
[347860276,1736166031361,-24900.0,0.00017955,2]
[347860277,1736166031382,-227.30116532,0.00018081,2]
[347860278,1736166031403,-3971.1734551,0.00018181,2]
[347860279,1736166031424,-446.638,0.0001848,2]
[347860280,1736166031444,-196.4229951,0.00018696,2]
[347860281,1736166031464,-153.42,0.00018782,2]
[347860282,1736166031486,-227.30116527,0.00018782,2]
[347860283,1736166031508,-1561.79076764,0.000189,2]
[347860284,1736166031529,-211.253,0.00018931,2]
[347860285,1736166031549,-183.3318414,0.0001912,2]
[347860286,1736166031571,-500.0,0.00019177,2]
[347860287,1736166031596,-500.0,0.00019177,2]
[347860288,1736166031620,-500.0,0.00019177,2]
[347860289,1736166031642,-500.0,0.00019177,2]
[347860290,1736166031664,-500.0,0.00019177,2]
[347860291,1736166031688,-500.0,0.00019177,2]
[347860292,1736166031709,-500.0,0.00019177,2]
[347860293,1736166031732,-500.0,0.00019177,2]
[347860294,1736166031753,-457.6372362,0.00019177,2]
[347860295,1736166031775,-600.0,0.00019177,2]
[347860296,1736166031796,-500.0,0.00019177,2]
[347860297,1736166031820,-500.0,0.00019177,2]
[347860298,1736166031840,-500.0,0.00019177,2]
[347860299,1736166031863,-500.0,0.00019177,2]
[347860300,1736166031884,-500.0,0.00019177,2]
[347860301,1736166031906,-500.0,0.00019177,2]
[347860302,1736166031929,-500.0,0.00019177,2]
[347860303,1736166031951,-500.0,0.00019177,2]
[347860304,1736166031974,-500.0,0.00019177,2]
[347860305,1736166031998,-342.7,0.00019177,2]
[347860306,1736166032020,-508.82438617,0.00019177,2]
[347860307,1736166032043,-500.0,0.00019177,2]
[347860308,1736166032065,-500.0,0.00019177,2]
[347860309,1736166032088,-500.0,0.00019177,2]
[347860310,1736166032110,-500.0,0.00019177,2]
[347860311,1736166032132,-500.0,0.00019178,2]
[347860312,1736166032154,-500.0,0.00019178,2]
[347860313,1736166032176,-168.090633,0.00019178,2]
[347860314,1736166032198,-168.090633,0.00019178,2]
[347860315,1736166032220,-500.0,0.00019178,2]
[347860316,1736166032241,-500.0,0.00019178,2]
[347860317,1736166032262,-151.0,0.00019178,2]
[347860318,1736166032284,-500.0,0.00019178,2]
[347860319,1736166032305,-151.0,0.00019178,2]
[347860320,1736166032327,-500.0,0.00019178,2]
[347860321,1736166032349,-500.0,0.00019178,2]
[347860322,1736166032370,-550.60014399,0.00019178,2]
[347860323,1736166032391,-151.501658,0.00019178,2]
[347860324,1736166032414,-500.0,0.00019178,2]
[347860325,1736166032436,-500.0,0.00019178,2]
[347860326,1736166032458,-500.0,0.00019178,2]
[347860327,1736166032481,-500.0,0.00019178,2]
[347860328,1736166032504,-807.72,0.00019178,2]
[347860329,1736166032526,-11941.56,0.00019178,2]
[347860330,1736166032549,-500.0,0.00019178,2]
[347860331,1736166032572,-500.0,0.00019178,2]
[347860332,1736166032599,-500.0,0.00019178,2]
[347860333,1736166032621,-500.0,0.00019178,2]
[347860334,1736166032645,-773.97,0.00019178,2]
[347860335,1736166032670,-503.36,0.00019178,2]
[347860336,1736166032692,-500.0,0.00019178,2]
[347860337,1736166032714,-500.0,0.00019178,2]
[347860338,1736166032737,-500.0,0.00019178,2]
[347860339,1736166032761,-500.0,0.00019178,2]
[347860340,1736166032784,-500.0,0.00019178,2]
[347860341,1736166032806,-500.0,0.00019178,2]
[347860342,1736166032827,-500.0,0.00019178,2]
[347860343,1736166032850,-500.0,0.00019178,2]
[347860344,1736166032873,-1095.55,0.00019178,2]
[347860345,1736166032897,-500.0,0.00019178,2]
[347860346,1736166032922,-2366.39,0.00019178,2]
[347860347,1736166032944,-500.0,0.00019178,2]
[347860348,1736166032966,-500.0,0.00019178,2]
[347860349,1736166032988,-500.0,0.00019178,2]
[347860350,1736166033013,-1658.3,0.00019178,2]
[347860351,1736166033037,-500.0,0.00019178,2]
[347860352,1736166033060,-500.0,0.00019178,2]
[347860353,1736166033083,-500.0,0.00019178,2]
[347860354,1736166033108,-1108.31,0.00019178,2]
[347860355,1736166033133,-500.0,0.00019178,2]
[347860356,1736166033158,-500.0,0.00019178,2]
[347860357,1736166033183,-500.0,0.00019178,2]
[347860358,1736166033208,-1115.07,0.00019178,2]
[347860359,1736166033232,-812.81,0.00019178,2]
[347860360,1736166033255,-500.0,0.00019178,2]
[347860361,1736166033278,-500.0,0.00019178,2]
[347860362,1736166033300,-500.0,0.00019178,2]
[347860363,1736166033323,-500.0,0.00019178,2]
[347860364,1736166033345,-352.9020598,0.0001926,2]
[347860365,1736166033367,-352.9020598,0.0001926,2]
[347860366,1736166033389,-352.9020598,0.0001926,2]
[347860367,1736166033411,-352.9020598,0.0001926,2]
[347860368,1736166033435,-352.9020598,0.0001926,2]
[347860369,1736166033459,-352.9020598,0.0001926,2]
[347860370,1736166033483,-352.9020598,0.0001926,2]
[347860371,1736166033505,-352.9020598,0.0001926,2]
[347860372,1736166033527,-306.6056449,0.0001926,2]
[347860373,1736166033548,-465.71881332,0.00019299,2]
[347860374,1736166033570,-959.0,0.00019299,9]
[347860375,1736166033745,1849.67280333,0.000192,2]
[347860376,1736166035154,209.98275448,0.00019178,2]
[347860377,1736166038788,5000.0,0.00019299,2]
[347860378,1736166042179,774.06,0.00019178,2]
[347860379,1736166051994,170.159917,0.00013973,2]
[347860380,1736166053786,-369870.75045016,0.000193,5]
[347860381,1736166055575,5000.0,0.000193,5]
[347860382,1736166070634,1234.78232761,0.000193,5]
[347860415,1736166632595,-470.86247611,0.00015682,2]
[347860416,1736166632605,-470.86247611,0.0001584,2]
[347860417,1736166632614,-470.86247611,0.00016,2]
[347860418,1736166632623,-627.06819833,0.00017,2]
[347860419,1736166632633,-213.7483044,0.00017891,2]
[347860420,1736166632642,-300.0,0.00017998,2]
[347860421,1736166632652,-500.0,0.00017998,2]
[347860422,1736166632661,-500.0,0.00017998,2]
[347860423,1736166632671,-500.0,0.00017998,2]
[347860424,1736166632680,-500.0,0.00017998,2]
[347860425,1736166632690,-500.0,0.00017998,2]
[347860426,1736166632699,-220.5283662,0.00017998,2]
[347860446,1736166638636,-279.4716338,0.00017998,2]
[347860447,1736166638646,-500.0,0.00017998,2]
[347860448,1736166638655,-384.18191513,0.00017998,2]
[347860449,1736166638665,-260.3,0.00017998,2]
[347860450,1736166638674,-298.38605787,0.00017998,2]
[347860451,1736166638687,-201.61394213,0.00017998,2]
[347860452,1736166638697,-500.0,0.00017998,2]
[347860453,1736166638707,-500.0,0.00017998,2]
[347860454,1736166638716,-295.74598487,0.00017998,2]
[347860461,1736166640236,-204.25401513,0.00017998,2]
[347860462,1736166640246,-236.64557585,0.00017998,2]
[347860463,1736166640258,-263.35442415,0.00017998,2]
[347860464,1736166640267,-500.0,0.00017998,2]
[347860466,1736166640277,-500.0,0.00017998,2]
[347860468,1736166640287,-500.0,0.00017998,2]
[347860470,1736166640296,-500.0,0.00017998,2]
[347860472,1736166640306,-500.0,0.00017998,2]
[347860474,1736166640315,-500.0,0.00017998,2]
[347860476,1736166640325,-500.0,0.00017998,2]
[347860478,1736166640335,-500.0,0.00017998,2]
[347860480,1736166640344,-310.87266844,0.00017998,2]
[347860482,1736166640353,-500.0,0.00017998,2]
[347860484,1736166640362,-500.0,0.00017998,2]
[347860486,1736166640371,-500.0,0.00017998,2]
[347860488,1736166640381,-500.0,0.00017998,2]
[347860490,1736166640391,-500.0,0.00017998,2]
[347860492,1736166640400,-500.0,0.00017998,2]
[347860494,1736166640409,-500.0,0.00017998,2]
[347860496,1736166640419,-552.5867586,0.00017998,2]
[347860498,1736166640428,-500.0,0.00017998,2]
[347860500,1736166640437,-500.0,0.00017998,2]
[347860502,1736166640447,-500.0,0.00017998,2]
[347860504,1736166640456,-500.0,0.00017998,2]
[347860506,1736166640467,-500.0,0.00017998,2]
[347860508,1736166640476,-500.0,0.00017998,2]
[347860510,1736166640486,-500.0,0.00017998,2]
[347860512,1736166640496,-500.0,0.00017998,2]
[347860514,1736166640506,-28348.97424466,0.00017999,2]
[347860517,1736166640518,-35333.78634212,0.00017999,2]
[347860536,1736166640706,-2937.76557391,0.00017818,2]
[347860537,1736166640715,-10814.30191364,0.00017999,2]
[347861325,1736166802720,754.67249892,0.00025,120]
[347861326,1736166882616,200.0,0.00025,120]
[347861327,1736167127169,169.561162,0.00013973,2]
[347861741,1736167817567,4244.0290544,0.00014936,2]
[347861786,1736167832863,-2097.3759321,0.00015484,2]
[347861788,1736167832872,-307.94292794,0.00015838,2]
[347861790,1736167832882,-301.59446307,0.00015932,2]
[347861792,1736167832891,-500.0,0.00015932,2]
[347861794,1736167832900,-500.0,0.00015932,2]
[347861796,1736167832910,-500.0,0.00015932,2]
[347861798,1736167832919,-171.89780885,0.00015932,2]
[347861800,1736167832929,-500.0,0.00015932,2]
[347861802,1736167832939,-256.76362983,0.00015932,2]
[347861805,1736167832949,-500.0,0.00015932,2]
[347861807,1736167832958,-300.0,0.00015933,2]
[347861809,1736167832967,-16945.00834006,0.00015933,2]
[347861812,1736167832987,-978.40427334,0.00015933,2]
[347861814,1736167832998,-19699.73393649,0.00015933,2]
[347861816,1736167833008,-20017.74858,0.00015933,2]
[347862166,1736167838871,-14787.28598694,0.00015933,2]
[347862190,1736167840818,-25934.81888317,0.00015933,2]
[347862191,1736167840828,-1467.62832713,0.00015934,2]
[347862192,1736167840838,-16429.85245849,0.00015934,2]
[347862193,1736167840873,-2650.05885128,0.00015934,2]
[347862409,1736167846748,-2945.3594,0.00015934,2]
[347862410,1736167846760,-1061.7999,0.00015934,2]
[347862430,1736168198886,215.3997763,0.00015,2]
[347862493,1736168269810,300.0,0.00014937,2]
[347862494,1736168290090,22755.6757164,0.00014881,2]
[347862495,1736168475126,300.0,0.00014937,2]
[347862497,1736168592200,674.3742141,0.00014,5]
[347862498,1736168682273,165.1845433,0.00014937,2]
[347862499,1736168758969,161.083103,0.00013973,2]
[347862709,1736169037938,-382.815002,0.00015231,2]
[347863044,1736169042866,-500.0,0.00015231,2]
[347863979,1736169186090,195.6370992,0.00014932,2]
[347863980,1736169307626,6816.7326438,0.00014937,2]
[347863981,1736169570119,921.9722177,0.00014876,2]
[347863983,1736169646942,426.32143949,0.00014928,2]
[347863984,1736169683846,161.083103,0.00013973,2]
[347863985,1736169751997,11625.60913583,0.00014859,2]
[347863986,1736169774561,651.508146,0.00014925,2]
[347863987,1736169849639,426.32143949,0.00014928,2]
[347863989,1736169955497,1352.1177537,0.00014956,2]
[347863991,1736170117623,151.697046,0.0002,120]
[347864123,1736170236013,-300.0,0.00015255,2]
[347864124,1736170236023,-733.81416357,0.00015256,2]
[347864125,1736170236032,-15217.43724033,0.00015256,2]
[347864126,1736170236041,-10120.34969733,0.00015257,2]
[347864168,1736170238076,-14779.65030267,0.00015257,2]
[347864170,1736170238085,-426.32143949,0.00015441,2]
[347864172,1736170238094,-426.32143949,0.00015755,2]
[347864174,1736170238103,-998.80143827,0.00015942,2]
[347864176,1736170238112,-420.0,0.00016692,2]
[347864178,1736170238121,-307.018901,0.000173,2]
[347864180,1736170238130,-352.9020598,0.000173,2]
[347864182,1736170238139,-214.4016801,0.000173,2]
[347864184,1736170238149,-152.0,0.00017477,2]
[347864186,1736170238158,-389.54098576,0.00017891,2]
[347864188,1736170238168,-2000.0,0.000179,2]
[347864190,1736170238177,-501.688485,0.00017973,2]
[347864192,1736170238187,-500.0,0.00017973,2]
[347864194,1736170238196,-501.28433858,0.00017973,2]
[347864196,1736170238205,-578.11951285,0.00017973,2]
[347864198,1736170238215,-200.35463064,0.00017973,2]
[347864200,1736170238225,-155.17995967,0.00017973,2]
[347864202,1736170238235,-501.64557748,0.00017973,2]
[347864204,1736170238243,-500.0,0.00017973,2]
[347864206,1736170238253,-152.17914002,0.00017973,2]
[347864208,1736170238263,-265.71868349,0.00017973,2]
[347864210,1736170238272,-500.0,0.00017973,2]
[347864212,1736170238282,-261.72229294,0.00017973,2]
[347864214,1736170238291,-151.17667941,0.00017973,2]
[347864216,1736170238304,-283.48671577,0.00017973,2]
[347864218,1736170238313,-468.73763203,0.00017973,2]
[347864220,1736170238323,-501.3383945,0.00017973,2]
[347864222,1736170238332,-160.6306041,0.00017973,2]
[347864224,1736170238342,-151.0,0.00017973,2]
[347864226,1736170238351,-151.0,0.00017973,2]
[347864228,1736170238360,-500.0,0.0001799,2]
[347864230,1736170238370,-500.0,0.0001799,2]
[347864232,1736170238380,-500.0,0.0001799,2]
[347864234,1736170238390,-500.0,0.0001799,2]
[347864236,1736170238401,-500.0,0.0001799,2]
[347864238,1736170238411,-500.0,0.0001799,2]
[347864240,1736170238420,-500.0,0.0001799,2]
[347864242,1736170238430,-500.0,0.0001799,2]
[347864244,1736170238439,-198.19669592,0.0001799,2]
[347864246,1736170238448,-500.0,0.0001799,2]
[347864248,1736170238458,-500.0,0.0001799,2]
[347864250,1736170238467,-500.0,0.0001799,2]
[347864252,1736170238476,-500.0,0.0001799,2]
[347864254,1736170238485,-500.0,0.0001799,2]
[347864256,1736170238494,-500.0,0.0001799,2]
[347864258,1736170238503,-500.0,0.0001799,2]
[347864260,1736170238512,-500.0,0.0001799,2]
[347864261,1736170238522,-500.0,0.0001799,2]
[347864262,1736170238531,-500.0,0.0001799,2]
[347864263,1736170238540,-500.0,0.0001799,2]
[347864264,1736170238550,-500.0,0.0001799,2]
[347864265,1736170238559,-613.34526777,0.0001799,2]
[347864266,1736170238567,-500.0,0.0001799,2]
[347864267,1736170238577,-500.0,0.0001799,2]
[347864268,1736170238586,-500.0,0.0001799,2]
[347864269,1736170238595,-500.0,0.0001799,2]
[347864270,1736170238604,-397.41165278,0.0001799,2]
[347864272,1736170238614,-500.0,0.0001799,2]
[347864274,1736170238623,-500.0,0.0001799,2]
[347864275,1736170238632,-500.0,0.0001799,2]
[347864276,1736170238641,-500.0,0.0001799,2]
[347864277,1736170238651,-500.0,0.0001799,2]
[347864278,1736170238660,-500.0,0.0001799,2]
[347864279,1736170238669,-500.0,0.0001799,2]
[347864280,1736170238678,-500.0,0.0001799,2]
[347864281,1736170238688,-500.0,0.0001799,2]
[347864282,1736170238697,-500.0,0.0001799,2]
[347864283,1736170238707,-410.20829202,0.0001799,2]
[347864284,1736170238716,-500.0,0.0001799,2]
[347864285,1736170238726,-500.0,0.0001799,2]
[347864286,1736170238735,-500.0,0.0001799,2]
[347864287,1736170238744,-500.0,0.0001799,2]
[347864288,1736170238754,-564.68513124,0.0001799,2]
[347864289,1736170238763,-500.0,0.0001799,2]
[347864290,1736170238772,-500.0,0.0001799,2]
[347864291,1736170238781,-500.0,0.0001799,2]
[347864292,1736170238791,-500.0,0.0001799,2]
[347864293,1736170238800,-500.0,0.0001799,2]
[347864294,1736170238810,-500.0,0.0001799,2]
[347864295,1736170238819,-500.0,0.0001799,2]
[347864296,1736170238829,-500.0,0.0001799,2]
[347864297,1736170238838,-500.0,0.0001799,2]
[347864298,1736170238847,-500.0,0.0001799,2]
[347864299,1736170238856,-500.0,0.0001799,2]
[347864300,1736170238866,-500.0,0.0001799,2]
[347864301,1736170238875,-500.0,0.0001799,2]
[347864302,1736170238885,-502.59475698,0.0001799,2]
[347864303,1736170238895,-500.0,0.0001799,2]
[347864304,1736170238904,-500.0,0.0001799,2]
[347864305,1736170238913,-500.0,0.0001799,2]
[347864306,1736170238922,-500.0,0.0001799,2]
[347864307,1736170238931,-500.0,0.0001799,2]
[347864308,1736170238941,-500.0,0.0001799,2]
[347864309,1736170238951,-500.0,0.0001799,2]
[347864310,1736170238960,-500.0,0.0001799,2]
[347864311,1736170238969,-500.0,0.0001799,2]
[347864312,1736170238979,-500.0,0.0001799,2]
[347864313,1736170238989,-500.0,0.0001799,2]
[347864314,1736170238999,-500.0,0.0001799,2]
[347864315,1736170239008,-500.0,0.0001799,2]
[347864316,1736170239021,-500.0,0.0001799,2]
[347864317,1736170239030,-500.0,0.0001799,2]
[347864318,1736170239040,-500.0,0.0001799,2]
[347864319,1736170239049,-500.0,0.0001799,2]
[347864320,1736170239058,-500.0,0.0001799,2]
[347864321,1736170239067,-500.0,0.0001799,2]
[347864322,1736170239077,-500.0,0.0001799,2]
[347864323,1736170239087,-500.0,0.0001799,2]
[347864324,1736170239096,-500.0,0.0001799,2]
[347864325,1736170239106,-500.0,0.0001799,2]
[347864326,1736170239115,-500.0,0.0001799,2]
[347864327,1736170239125,-500.0,0.0001799,2]
[347864328,1736170239134,-500.0,0.0001799,2]
[347864329,1736170239143,-500.0,0.0001799,2]
[347864330,1736170239152,-500.0,0.0001799,2]
[347864331,1736170239161,-500.0,0.0001799,2]
[347864332,1736170239171,-500.0,0.0001799,2]
[347864333,1736170239180,-500.0,0.0001799,2]
[347864334,1736170239190,-500.0,0.0001799,2]
[347864335,1736170239201,-500.0,0.0001799,2]
[347864336,1736170239210,-275.240001,0.00017993,2]
[347864337,1736170239220,-275.240001,0.00017993,2]
[347864338,1736170239229,-275.240001,0.00017993,2]
[347864339,1736170239238,-275.240001,0.00017993,2]
[347864340,1736170239247,-275.240001,0.00017993,2]
[347864341,1736170239256,-275.240001,0.00017993,2]
[347864342,1736170239266,-275.240001,0.00017993,2]
[347864343,1736170239275,-275.240001,0.00017993,2]
[347864344,1736170239284,-499.0,0.00017993,2]
[347864345,1736170239294,-151.0,0.00017993,2]
[347864346,1736170239307,-151.0,0.00017993,2]
[347864347,1736170239316,-199.728684,0.00017993,2]
[347864348,1736170239325,-151.0,0.00017993,2]
[347864349,1736170239335,-151.0,0.00017995,2]
[347864350,1736170239345,-151.0,0.00017995,2]
[347864351,1736170239354,-151.0,0.00017995,2]
[347864352,1736170239363,-151.0,0.00017995,2]
[347864353,1736170239373,-151.0,0.00017995,2]
[347864354,1736170239383,-151.0,0.00017995,2]
[347864355,1736170239393,-271.49897493,0.00017999,2]
[347864356,1736170239402,-577.84553568,0.00017999,2]
[347864357,1736170239412,-193.27526852,0.00017999,2]
[347864358,1736170239422,-99826.68009141,0.00018,2]
[347864359,1736170239431,-156.76022743,0.00018,5]
[347864360,1736170239441,-151.0,0.00018,2]
[347864361,1736170239451,-151.0,0.00018,2]
[347864362,1736170239460,-151.0,0.00018,2]
[347864363,1736170239470,-322.423987,0.00018,2]
[347864364,1736170239479,-322.423987,0.00018,2]
[347864365,1736170239488,-151.0,0.00018,2]
[347864366,1736170239498,-270.574801,0.00018,2]
[347864367,1736170239507,-270.574801,0.00018,2]
[347864368,1736170239516,-151.0,0.00018,2]
[347864369,1736170239526,-151.0,0.00018,2]
[347864370,1736170239535,-600.0,0.00018,2]
[347864371,1736170239545,-263.202796,0.00018,2]
[347864372,1736170239555,-275.240001,0.00018,2]
[347864373,1736170239564,-275.240001,0.00018,2]
[347864374,1736170239573,-153.6400067,0.00018164,2]
[347864375,1736170239582,-389.54098574,0.00018188,2]
[347864376,1736170239591,-587.0,0.00018264,2]
[347864378,1736170239601,-450.974,0.0001834,2]
[347864379,1736170239610,-389.54098574,0.00018485,2]
[347864380,1736170239619,-500.0,0.00018521,2]
[347864381,1736170239628,-500.0,0.00018521,2]
[347864383,1736170239637,-619.63903748,0.00018521,2]
[347864384,1736170239646,-153.41,0.000186,2]
[347864385,1736170239655,-152.17647654,0.00018614,2]
[347864386,1736170239665,-500.0,0.00018619,2]
[347864387,1736170239674,-582.77319186,0.00018621,2]
[347864388,1736170239683,-389.54098574,0.00018781,2]
[347864389,1736170239693,-1769.35953809,0.000189,2]
[347864390,1736170239702,-192.247,0.00018928,2]
[347864391,1736170239711,-282.394,0.00018928,2]
[347864392,1736170239720,-199.999999,0.00019,2]
[347864393,1736170239730,-86230.50311364,0.00019,3]
[347864394,1736170239739,-2000.0,0.00019,2]
[347864395,1736170239748,-201.0143,0.00019,2]
[347864396,1736170239758,-151.0,0.00019,2]
[347864397,1736170239767,-151.0,0.00019,2]
[347864398,1736170239776,-322.423987,0.00019,2]
[347864399,1736170239785,-322.423987,0.00019,2]
[347864400,1736170239795,-151.0,0.00019,2]
[347864401,1736170239804,-270.574801,0.00019,2]
[347864402,1736170239813,-270.574801,0.00019,2]
[347864403,1736170239823,-151.0,0.00019,2]
[347864404,1736170239832,-178.14486337,0.00019,2]
[347864405,1736170239841,-275.240001,0.00019,2]
[347864406,1736170239851,-275.240001,0.00019,2]
[347864407,1736170239860,-214.6267927,0.00019014,2]
[347864409,1736170239870,-214.6267927,0.00019014,2]
[347864412,1736170239880,-214.6267927,0.00019014,2]
[347864413,1736170239889,-203.9682286,0.00019014,2]
[347864415,1736170239899,-151.0,0.0001906,2]
[347864418,1736170239908,-389.54098574,0.00019078,2]
[347864419,1736170239917,-32651.72648478,0.00019078,2]
[347864420,1736170239927,-275.240001,0.000191,2]
[347864422,1736170239936,-275.240001,0.000191,2]
[347864424,1736170239945,-275.240001,0.000191,2]
[347864425,1736170239954,-275.240001,0.000191,2]
[347864427,1736170239964,-275.240001,0.000191,2]
[347864429,1736170239974,-275.240001,0.000191,2]
[347864431,1736170239983,-275.240001,0.000191,2]